bitfinex-derivatives/quotes_ETHF0:USTF0_20251003
["timestamp","ask_amount","ask_price","bid_price","bid_amount"]
[1759458902064,0.73836751,4490.6,4490.5,1.55683]
[1759458902264,1.42778751,4490.6,4490.5,1.55683]
[1759458902563,1.02726751,4490.6,4490.5,1.55683]
[1759458903464,0.58676751,4490.6,4490.5,1.55683]
[1759458904065,0.00166751,4490.6,4490.5,1.55683]
[1759458904263,0.00166751,4490.6,4490.5,1.77983]
[1759458906266,0.28306751,4490.6,4490.5,1.77983]
[1759458906667,0.00166751,4490.6,4490.5,1.77983]
[1759458907965,0.00166751,4490.6,4490.5,1.55683]
[1759458908166,0.00166751,4490.6,4490.5,1.77983]
[1759458910868,0.00166751,4490.6,4490.5,42.57983]
[1759458911166,0.40043,4491.7,4491.5,0.57463]
[1759458911373,1.12232,4491.7,4491.6,1.61123]
[1759458912079,1.41122,4491.7,4491.6,1.61123]
[1759458912372,1.41313752,4491.7,4491.6,1.61291686]
[1759458912573,1.41313752,4491.7,4491.6,1.21248686]
[1759458913266,1.41313752,4491.7,4491.6,0.93528686]
[1759458913865,0.00191752,4491.7,4491.6,1.61291686]
[1759458915571,0.00191752,4491.7,4491.6,1.38991686]
[1759458915778,0.00191752,4491.7,4491.6,36.35091686]
[1759458916671,0.022,4492.9,4492.7,0.40033]
[1759458916876,0.4405,4492.7,4492.6,3.2078]
[1759458917079,1.0108,4492.7,4492.6,3.9857]
[1759458917380,1.0108,4492.7,4492.6,4.4186]
[1759458917676,1.012888,4492.7,4492.6,4.4186]
[1759458917866,0.283488,4492.7,4492.6,4.4186]
[1759458918072,0.002088,4492.7,4492.6,4.4186]
[1759458918681,0.022,4492.9,4492.7,0.40033]
[1759458918875,0.022,4492.9,4492.8,0.7769]
[1759458919177,0.022,4492.9,4492.8,1.43549214]
[1759458919780,0.02369127,4492.9,4492.8,1.43549214]
[1759458921375,1.0379881,4493.8,4493.7,1.38804]
[1759458921675,0.5974881,4493.8,4493.7,1.61004]
[1759458921875,0.3085881,4493.8,4493.7,1.61004]
[1759458922079,0.0271881,4493.8,4493.7,1.61004]
[1759458922278,1.0108,4494.9,4494.8,0.9878]
[1759458922582,0.00249574,4494.9,4494.8,1.21247541]
[1759458923378,0.4405,4497.1,4495.5,0.1742]
[1759458923574,1.0108,4496.6,4496.0,3.382]
[1759458923777,3.3809,4497.0,4496.5,0.1742]
[1759458923981,0.2814,4496.9,4496.8,0.9878]
[1759458924178,0.2814,4496.9,4496.8,1.2098]
[1759458924477,1.0108,4497.3,4497.2,0.9878]
[1759458924675,1.0108,4497.3,4497.2,4.4176]
[1759458924983,0.28423671,4497.3,4497.2,4.4176]
[1759458925483,0.00283671,4497.3,4497.2,4.4176]
[1759458927178,3.2078,4498.2,4497.8,0.92538]
[1759458927378,0.4115,4498.8,4497.8,4.77838]
[1759458927683,0.4115,4498.8,4497.8,45.57838]
[1759458928293,0.965,4498.8,4498.7,0.2592]
[1759458928489,0.96700498,4498.8,4498.7,0.48287664]
[1759458928984,0.00200498,4498.8,4498.7,1.17237664]
[1759458929581,0.6919,4499.6,4499.5,1.1204]
[1759458929779,0.965,4499.6,4499.5,1.1657]
[1759458930584,0.96719631,4499.6,4499.5,1.1657]
[1759458931184,5.96719631,4499.6,4499.5,1.1657]
[1759458931387,5.96719631,4499.6,4499.5,1.3374]
[1759458931694,5.96719631,4499.6,4499.5,1.1657]
[1759458932492,5.96719631,4499.6,4499.5,0.217]
[1759458932992,0.2785,4499.2,4499.1,40.8]
[1759458933294,4.1607,4499.2,4499.1,0.222]
[1759458933894,4.1607,4499.2,4499.0,0.222]
[1759458934684,0.9529,4498.8,4498.7,0.00167664]
[1759458935092,5.9529,4498.8,4498.7,0.00167664]
[1759458935986,0.9529,4497.8,4497.3,0.4259]
[1759458936192,0.3904,4498.1,4497.6,0.9968]
[1759458936393,0.3904,4498.1,4497.8,0.4259]
[1759458936596,4.1607,4498.2,4498.1,0.9968]
[1759458936995,4.1607,4498.2,4498.1,0.99908976]
[1759458937192,4.1607,4498.2,4498.1,0.00228976]
[1759458938294,8.7703,4498.2,4496.9,0.4259]
[1759458938598,0.9529,4497.3,4496.9,0.4259]
[1759458939093,0.9529,4497.3,4497.2,0.5709]
[1759458939297,0.222,4498.3,4497.2,0.5709]
[1759458939298,3.5982,4498.2,4497.7,0.9968]
[1759458939490,3.4863,4498.2,4498.1,0.9968]
[1759458939698,3.2078,4498.2,4498.1,0.99908037]
[1759458939994,0.6689,4498.6,4498.5,0.2861]
[1759458940199,0.6689,4498.6,4498.5,1.1643]
[1759458940602,0.9529,4498.6,4498.5,1.1643]
[1759458940799,0.5625,4498.6,4498.5,1.1643]
[1759458941094,0.9529,4498.6,4498.4,0.222]
[1759458941297,0.9529,4498.5,4498.4,0.934]
[1759458941503,0.9529,4498.9,4498.8,0.5709]
[1759458941702,0.3904,4499.3,4498.8,0.9968]
[1759458941898,0.2785,4499.0,4498.9,0.9968]
[1759458942201,1.1105,4499.0,4498.8,0.222]
[1759458942398,0.5625,4498.3,4498.2,0.712]
[1759458942604,0.9529,4498.3,4498.2,1.2188]
[1759458943406,0.9529,4498.2,4498.1,0.00228037]
[1759458944705,6.43136659,4498.2,4498.1,0.00228037]
[1759458945709,6.43136659,4498.2,4497.7,0.222]
[1759458946001,6.43136659,4498.2,4497.3,3.2078]
[1759458946002,0.9529,4497.4,4497.3,3.2078]
[1759458946202,1.43136659,4497.4,4497.2,0.222]
[1759458946403,1.43136659,4497.3,4497.2,0.222]
[1759458946905,0.9529,4497.3,4497.2,0.22478669]
[1759458947505,0.9529,4497.3,4497.2,0.00178669]
[1759458948007,4.1607,4497.3,4497.2,0.00178669]
[1759458948207,9.6410256,4497.3,4497.2,0.00178669]
[1759458952123,9.6410256,4497.3,4496.3,0.082]
[1759458952324,0.9529,4496.4,4496.3,0.082]
[1759458952512,1.4332256,4496.4,4496.3,0.3681]
[1759458953322,1.43522509,4496.4,4496.3,0.00208835]
[1759458954921,6.43522509,4496.4,4496.3,0.00208835]
[1759458955625,6.43522509,4496.4,4496.3,0.05128835]
[1759458958022,6.43522509,4496.4,4496.3,0.0492]
[1759458958218,0.9529,4495.4,4495.3,0.712]
[1759458958521,0.9529,4495.4,4495.3,0.9968]
[1759458958822,0.5625,4495.4,4495.3,0.9968]
[1759458959011,0.3904,4495.8,4495.3,0.5709]
[1759458959214,0.76087411,4495.7,4495.6,0.9968]
[1759458959415,0.2785,4495.7,4495.6,0.9968]
[1759458959825,0.9529,4495.7,4495.6,0.9968]
[1759458963217,1.43543837,4495.7,4495.6,0.2861]
[1759458963814,1.43543837,4495.7,4495.3,0.00226165]
[1759458964023,0.5625,4495.7,4495.6,0.6885]
[1759458964526,0.9917,4495.7,4495.6,0.6885]
[1759458965624,0.9917,4495.7,4495.3,0.43106165]
[1759458965829,0.9806,4495.4,4495.3,0.00226165]
[1759458966722,4.1884,4495.4,4495.3,0.00226165]
[1759458966930,4.89416621,4495.4,4495.3,0.00226165]
[1759458968426,9.46496621,4495.4,4494.1,3.6366]
[1759458968631,0.9806,4494.2,4494.1,3.8963]
[1759458968824,0.9806,4494.2,4494.1,4.1768]
[1759458969424,0.9806,4494.2,4494.1,4.17877953]
[1759458969924,0.9806,4494.2,4494.1,0.97097953]
[1759458971930,0.9806,4494.2,4494.1,0.69047953]
[1759458972130,0.9806,4494.2,4494.1,0.00197953]
[1759458973228,1.46343271,4494.2,4494.1,0.00197953]
[1759458973427,1.46343432,4494.2,4494.1,0.00197953]
[1759458974134,0.9806,4494.2,4494.1,0.00197953]
[1759458974325,1.46352956,4494.2,4494.1,0.00197953]
[1759458975329,3.2078,4494.3,4494.1,0.97097953]
[1759458975528,3.637,4494.9,4494.6,0.4288]
[1759458975827,3.4831,4494.9,4494.8,0.969]
[1759458976230,0.2753,4494.9,4494.8,0.969]
[1759458976538,3.4831,4495.4,4495.3,0.969]
[1759458976721,3.96607841,4495.4,4495.3,0.969]
[1759458977632,3.96607841,4495.4,4495.0,0.1695]
[1759458977633,4.24217841,4495.4,4495.0,0.1695]
[1759458977929,0.5514,4495.2,4495.1,0.2597]
[1759458978130,0.9806,4495.2,4495.1,0.969]
[1759458978328,0.5514,4495.2,4495.1,0.969]
[1759458978725,0.9806,4495.2,4495.1,0.969]
[1759458978931,0.9806,4494.2,4493.6,0.4288]
[1759458979127,4.67174931,4494.2,4494.1,0.97097953]
[1759458979326,4.24254931,4494.2,4494.1,0.97097953]
[1759458980531,0.2753,4494.2,4494.1,0.97097953]
[1759458980725,0.9806,4494.6,4494.5,0.2597]
[1759458980924,1.4640207,4494.6,4494.5,0.6885]
[1759458981126,0.9806,4494.2,4494.1,0.00197953]
[1759458981425,4.67194222,4494.2,4494.1,0.00197953]
[1759458981830,4.1884,4494.2,4494.1,0.00197953]
[1759458982028,4.1884,4494.2,4493.7,0.6518]
[1759458982029,4.1884,4494.2,4493.2,3.2078]
[1759458982336,0.9806,4493.1,4493.0,0.969]
[1759458982638,0.9806,4493.6,4493.5,0.6885]
[1759458982837,1.46427357,4493.6,4493.5,0.6885]
[1759458983021,1.46427357,4493.6,4493.5,0.69027414]
[1759458983226,1.46697585,4493.6,4493.5,0.69027414]
[1759458984033,1.19087585,4493.6,4493.5,0.97077414]
[1759458984228,1.46697585,4493.6,4493.5,0.97077414]
[1759458986635,0.00270228,4493.6,4493.5,1.13417414]
[1759458991734,0.26740228,4493.6,4493.5,1.13417414]
[1759458991934,0.94160228,4493.6,4493.5,1.13417414]
[1759458992742,0.94160228,4493.6,4493.5,0.26147414]
[1759458992941,0.94160228,4493.6,4493.5,0.00177414]
[1759458993337,1.42561587,4493.6,4493.5,0.00177414]
[1759458997545,6.42561587,4493.6,4493.5,0.00177414]
[1759458997741,0.157,4493.0,4492.9,0.02225759]
[1759458998039,4.5255,4493.0,4492.9,0.02225759]
[1759458998239,5.00951359,4493.0,4492.9,0.02225759]
[1759458998639,4.62951359,4493.0,4492.9,0.95705759]
[1759458998840,4.21331359,4493.0,4492.9,0.95982972]
[1759458999035,3.2078,4493.0,4492.9,0.95982972]
[1759458999235,0.6797,4493.4,4493.3,0.9348]
[1759458999434,1.16438573,4493.4,4493.3,0.9348]
[1759458999943,1.42238573,4493.4,4493.3,0.9348]
[1759459000336,1.00618573,4493.4,4493.3,0.9348]
[1759459001544,1.42238573,4493.4,4493.3,0.9348]
[1759459004049,0.48468573,4493.4,4493.3,0.9348]
[1759459004242,0.00270228,4493.6,4493.5,1.0853]
[1759459004441,0.00270228,4493.6,4493.5,6.0853]
[1759459005851,0.00270228,4493.6,4493.5,1.0853]
[1759459006049,0.26620228,4493.6,4493.5,1.0853]
[1759459006248,0.00270228,4493.6,4493.5,1.0853]
[1759459007852,0.26620228,4493.6,4493.5,1.0853]
[1759459008147,0.94040228,4493.6,4493.5,0.9348]
[1759459008353,0.00270228,4493.6,4493.5,1.0853]
[1759459010258,0.157,4495.5,4494.7,0.9348]
[1759459010259,3.2078,4494.8,4494.7,0.9348]
[1759459010456,3.95648617,4494.8,4494.7,0.9348]
[1759459010654,3.69298617,4494.8,4494.7,0.9348]
[1759459010857,0.74868617,4494.8,4494.7,0.9348]
[1759459011247,0.26588435,4494.8,4494.7,0.9348]
[1759459011447,0.00238435,4494.8,4494.7,0.9348]
[1759459011653,0.26588435,4494.8,4494.7,0.9348]
[1759459013054,0.94008435,4494.8,4494.7,0.9348]
[1759459013258,0.94008435,4494.8,4494.7,0.26]
[1759459013463,0.94008435,4494.8,4494.7,0.6754]
[1759459013666,0.94008435,4494.8,4494.7,0.9348]
[1759459014160,0.94008435,4494.8,4494.4,0.223]
[1759459014355,0.9377,4494.4,4494.3,0.7424]
[1759459014563,0.9377,4494.4,4494.3,1.1578]
[1759459014760,0.5215,4494.4,4494.3,1.1578]
[1759459015953,0.9377,4494.4,4494.3,0.9348]
[1759459016163,0.2635,4494.3,4494.2,0.2594]
[1759459016462,0.9377,4494.3,4494.2,0.9348]
[1759459018557,0.26588435,4494.8,4494.7,0.9348]
[1759459018762,1.42315756,4494.8,4494.7,0.9348]
[1759459019062,1.42315756,4494.8,4493.6,0.4154]
[1759459019359,0.4162,4494.2,4493.7,0.4154]
[1759459019554,0.9377,4494.2,4494.1,0.26]
[1759459019749,0.9377,4494.2,4494.1,0.6754]
[1759459020157,0.5215,4494.2,4494.1,0.9348]
[1759459020363,3.2078,4494.3,4494.2,0.4154]
[1759459020564,3.4713,4494.3,4494.2,0.9348]
[1759459020761,3.8875,4494.3,4494.2,0.9348]
[1759459021064,4.1455,4494.3,4493.6,0.4154]
[1759459021261,4.1455,4494.3,4493.7,0.223]
[1759459021559,4.1455,4494.3,4494.2,0.26]
[1759459023258,4.1455,4494.3,4493.6,0.3842]
[1759459023567,0.5211,4493.7,4493.6,0.8959]
[1759459023758,0.2754,4493.7,4493.6,0.8959]
[1759459024759,0.924,4493.7,4493.6,0.8959]
[1759459025359,4.1318,4493.7,4493.6,0.6377]
[1759459025965,4.61502259,4493.7,4493.0,0.3792]
[1759459026166,0.924,4493.1,4493.0,1.2751]
[1759459026465,0.4029,4493.5,4493.0,0.8909]
[1759459026659,0.4029,4493.4,4493.1,0.3842]
[1759459026859,0.924,4493.2,4493.1,0.8959]
[1759459027763,4.1318,4493.2,4493.1,0.6377]
[1759459027969,4.1318,4493.2,4492.9,0.24802972]
[1759459027970,0.5211,4493.0,4492.9,0.02502972]
[1759459028158,1.0878,4493.0,4492.9,0.02502972]
[1759459028662,0.924,4493.0,4492.9,0.66272972]
[1759459029971,1.0878,4493.0,4492.9,0.02502972]
[1759459031058,1.0878,4493.0,4492.9,0.27852972]
[1759459031262,1.0878,4493.0,4492.9,0.66272972]
[1759459032070,1.0878,4493.0,4492.9,0.02502972]
[1759459032261,1.57119655,4493.0,4492.9,0.02502972]
[1759459032466,1.0878,4493.0,4492.9,0.02502972]
[1759459032969,6.7940653,4493.0,4492.1,0.3842]
[1759459033167,0.924,4492.2,4492.1,0.6377]
[1759459033470,0.924,4492.2,4492.1,0.8959]
[1759459033969,0.2754,4492.2,4492.1,1.29828251]
[1759459034165,3.2078,4492.6,4492.5,0.6679]
[1759459034365,3.2078,4492.6,4492.5,1.0521]
[1759459034557,3.4832,4492.6,4492.5,1.0521]
[1759459034968,3.2078,4492.6,4492.5,1.0521]
[1759459035172,3.4832,4492.6,4492.5,1.0521]
[1759459035572,4.1318,4492.6,4492.5,1.0521]
[1759459037080,4.1318,4492.6,4492.5,0.8959]
[1759459038283,0.5211,4492.3,4492.2,0.6377]
[1759459038483,0.924,4492.3,4492.2,0.8959]
[1759459039583,0.924,4492.3,4492.2,1.29627]
[1759459039784,3.4832,4492.6,4492.5,1.0521]
[1759459040977,3.9519,4493.1,4493.0,0.2535]
[1759459041177,4.3548,4493.1,4493.0,0.6377]
[1759459042181,3.4832,4493.1,4493.0,1.0521]
[1759459042481,3.2078,4493.1,4493.0,1.4524]
[1759459042978,3.4832,4493.7,4493.6,0.8959]
[1759459043374,0.2754,4493.7,4493.6,0.8959]
[1759459043579,0.4029,4494.0,4493.6,0.5117]
[1759459043886,4.1318,4494.2,4494.1,0.8959]
[1759459044385,0.924,4494.2,4494.1,0.8959]
[1759459045090,0.924,4494.2,4494.1,0.2527]
[1759459045288,0.924,4494.2,4493.8,0.3944]
[1759459045588,0.2429,4493.9,4493.8,0.8995]
[1759459046285,3.2078,4496.2,4494.6,0.5051]
[1759459046485,0.8815,4495.6,4495.5,0.6471]
[1759459046983,0.4986,4495.1,4495.0,1.0503]
[1759459047287,0.8815,4495.1,4495.0,1.0503]
[1759459047585,0.88329499,4495.1,4495.0,1.12414229]
[1759459047980,0.88329499,4495.1,4495.0,1.27494229]
[1759459049190,0.50039499,4495.1,4495.0,1.27494229]
[1759459051889,0.00179499,4495.1,4495.0,1.27494229]
[1759459052086,0.26339499,4495.1,4495.0,1.27494229]
[1759459053180,0.00179499,4495.1,4495.0,1.27494229]
[1759459053382,0.919,4496.2,4496.1,0.6175]
[1759459053790,0.3961,4496.1,4495.5,0.7372]
[1759459053985,0.5229,4495.6,4495.5,1.2306]
[1759459054292,0.92141868,4495.6,4495.5,1.2306]
[1759459054679,0.92141868,4495.6,4495.5,1.0844]
[1759459057491,0.92141868,4495.6,4495.5,1.2306]
[1759459058490,0.92141868,4495.6,4495.5,1.0844]
[1759459061497,0.92141868,4495.6,4495.5,0.2495]
[1759459061796,0.92141868,4495.6,4495.3,0.591]
[1759459061993,0.5229,4495.4,4495.3,0.368]
[1759459062196,0.5229,4495.4,4495.3,0.6175]
[1759459062197,0.919,4495.4,4495.3,0.6175]
[1759459063596,0.919,4495.4,4495.1,0.223]
[1759459063789,0.3961,4495.3,4495.1,0.591]
[1759459063986,0.919,4495.2,4495.1,0.8405]
[1759459064796,0.919,4495.2,4495.1,0.8614]
[1759459065296,0.39851868,4495.6,4495.1,0.89351]
[1759459065496,0.66011868,4495.6,4495.5,0.8614]
[1759459065691,0.26401868,4495.6,4495.5,1.0076]
[1759459065991,0.00241868,4495.6,4495.5,1.2306]
[1759459066199,0.00241868,4495.6,4495.5,1.63068]
[1759459068797,0.00241868,4495.6,4495.5,1.2306]
[1759459069101,0.00241868,4495.6,4495.5,1.63068]
[1759459069300,0.00241868,4495.6,4495.5,6.63068]
[1759459072503,0.00241868,4495.6,4495.5,6.2306]
[1759459073396,0.00241868,4495.6,4495.5,6.63068]
[1759459073597,0.00241868,4495.6,4495.5,6.2306]
[1759459073903,0.00241868,4495.6,4495.5,6.63068]
[1759459074296,0.00241868,4495.6,4495.5,6.2306]
[1759459074697,0.00241868,4495.6,4495.5,6.63068]
[1759459074901,0.00241868,4495.6,4495.5,6.40768]
[1759459075102,0.00241868,4495.6,4495.5,6.63068]
[1759459075502,0.48539364,4495.6,4495.5,6.63068]
[1759459076098,0.48539364,4495.6,4495.5,6.2306]
[1759459079009,0.48539364,4495.6,4495.5,6.63068]
[1759459080407,0.00241868,4495.6,4495.5,6.63068]
[1759459081703,0.35111278,4495.6,4495.5,6.63068]
[1759459081904,0.3648,4497.4,4496.5,0.159]
[1759459082200,0.4892,4497.4,4497.3,0.8937]
[1759459082405,0.2452,4497.4,4497.3,1.1167]
[1759459082605,0.854,4497.4,4497.3,1.1167]
[1759459082801,0.85635556,4497.4,4497.3,1.1167]
[1759459086406,0.85635556,4497.4,4497.3,0.8937]
[1759459086613,0.85635556,4497.4,4497.0,0.223]
[1759459086614,5.85635556,4497.4,4497.0,0.223]
[1759459086808,5.85635556,4497.4,4496.8,0.3966]
[1759459086809,0.49155556,4497.4,4496.8,0.6196]
[1759459087006,0.4892,4496.9,4496.8,0.6196]
[1759459087201,0.2452,4496.9,4496.8,1.1167]
[1759459087410,0.85635556,4497.4,4497.3,0.8937]
[1759459088515,0.24755556,4497.4,4497.3,0.8937]
[1759459088714,0.00235556,4497.4,4497.3,0.8937]
[1759459088912,0.85635556,4497.4,4497.3,0.6436]
[1759459089418,0.49155556,4497.4,4497.3,0.8937]
[1759459090517,0.00235556,4497.4,4497.3,0.8937]
[1759459092018,0.24755556,4497.4,4497.3,0.8937]
[1759459092418,1.60206383,4498.8,4498.6,0.3998]
[1759459092618,0.157,4499.0,4498.8,0.39978]
[1759459092813,0.157,4500.5,4500.4,0.39964]
[1759459093118,0.157,4501.5,4500.8,0.3996]
[1759459093318,0.157,4502.0,4501.1,3.2078]
[1759459093512,2.00257979,4505.1,4502.6,3.2078]
[1759459093819,3.2078,4505.5,4504.9,3.2078]
[1759459093820,0.157,4505.0,4504.9,3.2078]
[1759459094006,0.157,4505.0,4504.9,3.4308]
[1759459094211,0.157,4506.0,4504.9,49.2308]
[1759459094408,0.022,4507.9,4505.9,3.2078]
[1759459094611,4.00515958,4511.0,4507.6,3.2078]
[1759459094612,0.157,4508.5,4507.6,3.2078]
[1759459094808,3.2078,4507.8,4507.0,3.2078]
[1759459095007,3.3648,4507.5,4507.1,40.8]
[1759459095214,0.3648,4506.9,4506.5,3.2078]
[1759459095412,0.157,4506.5,4506.4,0.223]
[1759459095616,0.5218,4505.5,4505.4,3.2078]
[1759459095820,0.5218,4505.5,4505.4,3.4308]
[1759459096120,0.5218,4505.0,4504.9,0.00250962]
[1759459098213,5.5218,4505.0,4504.9,0.00250962]
[1759459098410,0.5218,4504.5,4504.4,0.223]
[1759459098814,0.157,4504.0,4503.5,3.2078]
[1759459099021,0.3648,4503.9,4503.5,3.2078]
[1759459099518,0.3648,4503.9,4503.5,3.20939309]
[1759459099711,0.157,4504.0,4503.5,3.20939309]
[1759459099916,0.3648,4503.9,4503.5,3.20939309]
[1759459100110,0.157,4504.0,4503.5,3.20939309]
[1759459100320,0.3648,4503.9,4503.5,3.20939309]
[1759459101814,0.3648,4503.8,4503.5,3.20939309]
[1759459102620,0.3648,4503.9,4503.5,3.20939309]
[1759459103415,0.157,4504.0,4503.5,3.20939309]
[1759459103623,0.3648,4503.9,4503.5,3.20939309]
[1759459103824,0.157,4504.0,4503.5,3.20939309]
[1759459104031,0.3648,4503.9,4503.5,3.20939309]
[1759459104225,0.157,4504.0,4503.5,3.20939309]
[1759459104828,0.4277,4503.9,4503.5,3.20939309]
[1759459105022,0.157,4504.0,4503.5,3.20939309]
[1759459105223,0.157,4504.0,4503.6,0.223]
[1759459105520,0.4277,4503.9,4503.6,0.223]
[1759459107620,0.157,4504.5,4504.3,0.39928]
[1759459107822,0.4277,4504.4,4504.3,0.39928]
[1759459108020,0.157,4504.5,4504.3,3.83008]
[1759459108330,0.157,4504.5,4504.3,44.63008]
[1759459108526,0.157,4504.5,4504.3,3.83008]
[1759459108922,0.4277,4504.4,4504.3,3.83008]
[1759459109127,0.4277,4504.4,4504.3,44.63008]
[1759459110123,0.5847,4505.5,4504.9,0.39924]
[1759459110433,0.5847,4505.5,4505.4,3.2078]
[1759459110628,0.5847,4505.5,4505.4,3.4308]
[1759459117128,0.1622,4506.0,4505.4,3.4308]
[1759459117327,0.00604469,4525.6,4505.9,3.2078]
[1759459117628,0.1702,4514.0,4513.6,0.39847]
[1759459117938,0.1702,4514.5,4514.0,0.39843]
[1759459118232,0.17231066,4514.5,4514.1,0.86651296]
[1759459118423,0.17231066,4514.5,4514.2,1.06592296]
[1759459118626,0.1702,4515.0,4514.7,0.39837]
[1759459118835,0.1702,4515.0,4514.8,1.29772706]
[1759459119131,0.1702,4515.0,4514.9,1.00859386]
[1759459119338,0.1702,4515.0,4514.9,0.69104184]
[1759459119537,5.59673277,4515.0,4514.9,0.03719348]
[1759459119835,0.4248,4514.3,4514.2,0.57307485]
[1759459120037,0.4248,4514.3,4514.0,0.0024941]
[1759459120231,0.1702,4514.4,4514.0,0.0024941]
[1759459120425,0.1702,4514.4,4514.3,3.2078]
[1759459120635,0.00173277,4515.0,4514.3,3.4308]
[1759459120837,0.00173277,4515.0,4514.9,3.2078]
[1759459120838,0.59673277,4515.0,4514.9,3.2078]
[1759459121232,0.1702,4514.4,4514.3,0.76305023]
[1759459121434,0.1702,4514.4,4514.0,0.0024941]
[1759459121641,0.4248,4514.3,4514.0,0.0024941]
[1759459121937,0.1702,4513.8,4513.4,3.2078]
[1759459122142,0.1702,4513.8,4511.2,1.59595187]
[1759459122143,0.1702,4513.2,4512.9,3.2078]
[1759459122536,0.1702,4513.2,4512.9,3.1858]
[1759459122942,0.1702,4513.8,4512.9,3.1858]
[1759459122943,0.1702,4513.8,4513.1,0.76305023]
[1759459123245,0.595,4513.8,4513.7,3.2078]
[1759459125444,0.595,4514.4,4513.7,3.2078]
[1759459125738,0.4248,4514.3,4514.2,3.2078]
[1759459126550,5.4248,4514.3,4514.2,3.2078]
[1759459127548,0.4248,4514.3,4514.2,3.2078]
[1759459129747,0.4248,4514.9,4514.2,3.2078]
[1759459129944,0.6468,4514.9,4514.2,3.2078]
[1759459130550,0.17193277,4515.0,4514.7,3.2078]
[1759459130742,3.2078,4516.4,4514.8,0.1223]
[1759459130946,0.1702,4516.5,4515.6,0.1223]
[1759459131248,0.4248,4516.4,4516.3,3.2078]
[1759459131847,0.42765413,4516.4,4516.3,3.20980623]
[1759459133256,5.42765413,4516.4,4516.3,0.00200623]
[1759459133657,0.4248,4515.9,4515.8,3.2078]
[1759459133957,0.4248,4515.4,4515.2,3.2078]
[1759459134153,0.1702,4515.5,4515.2,3.2078]
[1759459134359,5.0,4515.4,4514.5,3.2078]
[1759459134548,0.1702,4515.0,4514.5,3.2078]
[1759459134750,0.222,4514.9,4514.5,3.20963714]
[1759459134950,0.222,4514.9,4514.5,0.00183714]
[1759459134951,0.4248,4514.8,4514.5,0.00183714]
[1759459135152,0.4248,4514.8,4514.0,3.2078]
[1759459135358,0.4248,4514.0,4513.4,0.39849]
[1759459135558,0.817,4514.5,4513.8,3.2078]
[1759459135854,0.1702,4515.0,4514.4,3.2078]
[1759459136060,0.1702,4515.0,4514.9,3.2078]
[1759459136252,0.595,4515.0,4514.9,3.21048275]
[1759459136453,0.1702,4515.5,4514.9,3.21048275]
[1759459136653,0.1702,4516.0,4515.4,3.2078]
[1759459136654,0.595,4516.0,4515.4,3.2078]
[1759459136850,0.595,4516.0,4515.5,0.73950906]
[1759459137060,0.4248,4516.3,4515.9,3.2078]
[1759459137260,0.4248,4516.3,4516.0,1.50255929]
[1759459137463,0.4248,4516.3,4516.1,0.73950906]
[1759459137658,0.3922,4516.5,4516.2,0.73950906]
[1759459137862,0.1702,4516.5,4516.3,0.73950906]
[1759459138259,0.42765413,4516.4,4516.3,0.73950906]
[1759459138666,5.64965413,4516.4,4516.3,0.73950906]
[1759459140166,0.42765413,4516.4,4516.3,0.73950906]
[1759459140965,0.64965413,4516.4,4516.3,0.73950906]
[1759459141166,0.42765413,4516.4,4516.3,0.73950906]
[1759459141968,0.64965413,4516.4,4516.3,1.50241684]
[1759459142164,0.64965413,4516.4,4516.3,0.73950906]
[1759459142165,5.42765413,4516.4,4516.3,0.73950906]
[1759459142369,5.64965413,4516.4,4516.3,1.50353557]
[1759459142868,5.64965413,4516.4,4516.3,0.73950906]
[1759459143569,5.42765413,4516.4,4516.3,9.06e-06]
[1759459143765,0.42765413,4516.4,4516.3,9.06e-06]
[1759459143964,0.64965413,4516.4,4516.3,9.06e-06]
[1759459144779,0.4107,4516.3,4515.7,0.76402651]
[1759459145071,0.4107,4515.9,4515.6,0.76402651]
[1759459145262,0.4107,4515.9,4515.6,1.14692443]
[1759459145466,0.00285413,4516.4,4515.9,0.3974]
[1759459145668,0.00285413,4516.4,4516.3,3.6052]
[1759459145970,0.00285413,4516.4,4516.3,4.75945278]
[1759459146375,0.00285413,4516.4,4516.3,3.6052]
[1759459146976,0.22485413,4516.4,4516.3,3.6052]
[1759459147166,0.00285413,4516.4,4516.3,3.89904337]
[1759459147362,3.695,4520.8,4516.3,3.89904337]
[1759459147363,3.2078,4519.2,4518.0,0.1568]
[1759459147566,3.2618,4519.2,4518.2,3.2078]
[1759459147775,1.10347939,4518.3,4518.2,3.50128637]
[1759459147973,1.10347939,4518.3,4518.2,0.29348637]
[1759459148175,1.10347939,4518.3,4517.9,1.16341638]
[1759459148176,6.10347939,4518.3,4517.9,1.16341638]
[1759459148475,6.10347939,4518.3,4517.1,1.16341638]
[1759459148476,3.2078,4518.0,4517.1,1.16341638]
[1759459148669,3.2078,4517.3,4516.6,3.2078]
[1759459149367,3.2078,4517.9,4517.1,0.3974]
[1759459149567,3.2078,4517.9,4517.6,0.3974]
[1759459150077,0.222,4517.8,4517.6,0.3974]
[1759459150267,3.2078,4517.9,4517.6,0.3974]
[1759459150474,0.222,4517.8,4517.6,0.3974]
[1759459150978,3.2078,4517.9,4517.6,0.3974]
[1759459150979,0.222,4517.7,4517.6,0.3974]
[1759459151171,0.222,4517.7,4517.5,0.1568]
[1759459151367,3.2078,4517.9,4517.6,0.3974]
[1759459151564,0.222,4517.8,4517.6,0.3974]
[1759459151768,5.222,4517.8,4517.0,0.5542]
[1759459152067,5.222,4517.8,4517.0,0.1568]
[1759459152068,3.2078,4517.4,4517.0,0.1568]
[1759459152269,0.222,4517.3,4516.6,0.00243495]
[1759459152766,3.2078,4517.9,4517.1,0.3974]
[1759459152966,3.2078,4517.9,4517.5,0.1568]
[1759459153173,0.222,4517.8,4517.6,0.3974]
[1759459153480,0.222,4517.8,4517.0,0.5542]
[1759459153679,3.2078,4517.4,4516.6,0.00243495]